{"text_format":"1","workbook":"xlsx","n_sheets":7,"sheets":["MMES","Desechos","Desarrollo","Recomendacion","Ru","TIPO","Hoja1"],"not_rendered":{"charts":0,"images":0,"macros":0,"external_links":0,"defined_names":9,"comments":0,"pivot_tables":0},"unopened":[],"bounds":{"document_bytes":16777216,"sheet_cells":100000,"rows_first":2000,"rows_last":500,"rows_between":2000,"halvings":0,"cell_chars":16384,"cell_head_chars":4096},"cells_cut":0,"cells_raw":0,"read":"whole","date_system":"1900"}

{"sheet":"MMES","index":0,"n_rows":220,"n_cols":46,"rows_kept":220,"cut":false,"hidden":false,"merged":[[18,5,18,6],[18,15,18,16],[18,11,18,12],[18,13,18,14],[219,5,219,6],[10,3,10,27],[10,28,10,35],[12,3,12,35],[14,3,14,18],[14,19,14,35],[18,19,18,35],[18,3,18,4],[22,3,22,28],[0,1,0,37],[3,3,3,35],[5,34,5,35],[8,3,8,27],[8,28,8,35],[18,17,18,18],[17,19,17,35],[18,7,18,8],[18,9,18,10],[69,4,69,35],[16,3,16,18],[131,8,131,14],[127,16,127,17],[46,3,46,35],[60,4,60,35],[62,4,63,35],[74,4,74,35],[85,19,85,20],[20,3,20,35],[126,13,126,14],[22,29,22,35],[71,4,72,35],[24,3,24,28],[85,16,85,17],[85,7,85,8],[85,10,85,11],[85,13,85,14],[84,22,84,26],[65,4,65,35],[24,29,24,35],[35,3,35,35],[76,3,82,5],[84,3,84,21],[127,7,127,8],[127,10,127,11],[127,13,127,14],[126,3,126,5],[126,7,126,8],[126,10,126,11],[126,19,126,20],[126,22,126,26],[126,28,126,34],[126,16,126,17],[113,37,116,37],[114,20,116,30],[117,37,119,37],[118,20,122,30],[121,37,123,37],[139,37,141,37],[133,29,133,30],[133,32,133,34],[135,26,135,28],[133,25,133,27],[127,19,127,20],[182,27,182,31],[174,23,174,25],[180,27,180,31],[136,8,136,14],[173,19,173,21],[139,3,141,16],[139,17,141,19],[139,20,141,30],[173,23,173,25],[173,29,173,33],[174,7,174,9],[174,11,174,13],[174,15,174,17],[174,19,174,21],[173,15,173,17],[133,8,133,14],[173,7,173,9],[173,11,173,13],[184,27,184,31],[187,9,187,11],[187,15,187,17],[187,21,187,23],[187,27,187,31],[188,9,188,11],[188,15,188,17],[188,21,188,23],[192,27,192,31],[200,9,200,11],[200,15,200,17],[200,21,200,23],[194,27,194,31],[196,27,196,31],[199,9,199,11],[199,15,199,17],[199,21,199,23],[199,27,199,31],[203,27,203,31],[203,9,203,11],[203,15,203,17],[203,21,203,23],[204,21,204,23],[210,7,210,11],[210,15,210,17],[204,9,204,11],[204,15,204,17],[213,27,216,34],[215,3,215,7],[215,17,216,26],[211,15,211,17],[211,21,211,23],[209,27,211,34],[210,21,210,23],[213,3,213,15],[213,17,214,19],[211,7,211,11]]}
[]
[]
[]
[null,null,null,"SEGURO AMBIENTAL DE INCIDENCIA COLECTIVA AUTODETERMINACIÓN DEL MONTO MÍNIMO DE ENTIDAD SUFICIENTE (MMES)"]
[]
[null,null,null,"Datos Generales",null,null,null,null,null,null,null,null,null,null,null,null,null,null,null,null,null,null,null,null,null,null,null,null,null,null,null,null,null,null,"Rev. 10"]
[]
[null,null,null,"Razón Social (*)",null,null,null,null,null,null,null,null,null,null,null,null,null,null,null,null,null,null,null,null,null,null,null,null,"Fecha (*)"]
[null,null,null,null,null,null,null,null,null,null,null,null,null,null,null,null,null,null,null,null,null,null,null,null,null,null,null,null,"2017-06-01"]
[null,null,null,"Denominación de la Planta (*)",null,null,null,null,null,null,null,null,null,null,null,null,null,null,null,null,null,null,null,null,null,null,null,null,"CUIT (*)"]
[null,null,null,null,null,null,null,null,null,null,null,null,null,null,null,null,null,null,null,null,null,null,null,null,null,null,null,null,0]
[null,null,null,"Domicilio - Localidad - Provincia -UBICACIÓN DEL RIESGO- (*)"]
[]
[null,null,null,"Teléfono(s) (*)",null,null,null,null,null,null,null,null,null,null,null,null,null,null,null,"Página web",null,null,null,null,null,null,null,null,null,null,null,null,null,null,null,"campo opcional"]
[]
[null,null,null,"e-mail (*)",null,null,null,null,null,null,null,null,null,null,null,null,null,null,null,"Organismo Solicitante del Seguro (*)"]
[null,null,null,null,null,null,null,null,null,null,null,null,null,null,null,null,null,null,null,null,null,null,null,null,null,null,null,null,null,null,null,null,null,null,null,null,null,null,1,{"$f":"+IF(AM17=1,1,IF(AM17=6,IF(T19=0,1,0),0))","v":1},{"$f":"+IF(AM17=6,IF(T19=0,1,0),0)","v":0}]
[null,null,null,"Coordenadas geográficas (*)",null,null,null,null,null,null,null,null,null,null,null,null,null,null,null,{"$f":"+IF(AM17=6,IF(T19=0,\"Organismo Solicitante del Seguro\",0),0)","v":0}]
[null,null,null,null,null,null,null,null,null,"Lat. Sur",null,null,null,null,null,null,null,"Long. O"]
[null,null,null,"Persona(s) de contacto (*)"]
[]
[null,null,null,"Responsable Técnico (*)",null,null,null,null,null,null,null,null,null,null,null,null,null,null,null,null,null,null,null,null,null,null,null,null,null,"DNI (*)"]
[]
[null,null,null,"Responsable Medio Ambiente",null,null,null,null,null,null,null,null,null,null,null,null,null,null,null,null,null,null,null,null,null,null,null,null,"campo opcional","DNI",null,null,null,null,null,"campo opcional"]
[]
[]
[null,null,null,"Relevamiento Documental "]
[]
[]
[]
[]
[null,null,null,"Rubro Complementario según RES. 481/2011 - sólo para Rubros Principales = 999999",null,null,null,null,null,null,null,null,null,null,null,null,null,null,null,null,null,null,null,null,null,null,null,null,null,null,null,null,null,null,null,{"$f":"IF(Ru!E2=1,0,IF(Ru!E2<160,\"NO realizar opción de la siguiente ventana para el Rubro principal seleccionado\",\"DEBE realizar una selección adicional de la siguiente ventana de acuerdo a la RES. 481/2011\"))","v":"NO realizar opción de la siguiente ventana para el Rubro principal seleccionado"},null,null,{"$f":"+Ru!E2","v":2},{"$f":"+IF(AM32>=160,IF(AM33>1,1,0))","v":false}]
[null,null,null,null,null,null,null,null,null,null,null,null,null,null,null,null,null,null,null,null,null,null,null,null,null,null,null,null,null,null,null,null,null,null,null,null,null,null,{"$f":"+Ru!E163","v":2}]
[]
[]
[null,null,null,{"$f":"+IF(AM32<160,IF(AM33>1,\"NO CORRESPONDE LA SELECCIÓN SEGÚN RES. 481/2011\",\"  \"),VLOOKUP(AM33,Ru!$A$165:$G$177,7,0))","v":"NO CORRESPONDE LA SELECCIÓN SEGÚN RES. 481/2011"}]
[]
[null,null,null,"Tipos de desechos (*)"]
[null,null,null,null,null,null,null,null,null,null,null,null,null,null,null,null,null,null,null,null,null,null,null,null,null,null,null,null,null,null,null,null,null,0]
[]
[]
[]
[]
[]
[]
[null,null,null,"Detallar la Actividad"]
[]
[]
[null,null,null,"Coeficientes (Efluentes y Residuos)",null,null,null,null,null,null,null,null,null,null,null,null,null,null,null,null,null,null,null,null,null,null,null,null,null,null,null,null,null,null,null,"marcar donde corresponda"]
[]
[null,null,null,"Gaseosos"]
[]
[null,null,null,null,"componentes naturales del aire (incluido vapor de agua) - gases de combustión de gas natural",null,null,null,null,null,null,null,null,null,null,null,null,null,null,null,null,null,null,null,null,null,null,null,null,null,null,null,null,null,null,null,null,null,true,{"$f":"+IF(AM53=TRUE,\"G0\",0)","v":"G0"},{"$f":"+IF(AN57<>0,AN57,IF(AN55<>0,AN55,IF(AN53<>0,AN53,0)))","v":"G1"}]
[]
[null,null,null,null,"gases de combustión de hidrocarburos líquidos",null,null,null,null,null,null,null,null,null,null,null,null,null,null,null,null,null,null,null,null,null,null,null,null,null,null,null,null,null,null,null,null,null,true,{"$f":"+IF(AM55=TRUE,\"G1\",0)","v":"G1"}]
[]
[null,null,null,null,"otros",null,null,null,null,null,null,null,null,null,null,null,null,null,null,null,null,null,null,null,null,null,null,null,null,null,null,null,null,null,null,null,null,null,false,{"$f":"+IF(AM57=TRUE,\"G2\",0)","v":0}]
[]
[null,null,null,"Líquidos"]
[]
[null,null,null,null,"agua sin aditivos; lavado de planta de establecimientos del Rubro 1, a temperatura ambiente",null,null,null,null,null,null,null,null,null,null,null,null,null,null,null,null,null,null,null,null,null,null,null,null,null,null,null,null,null,null,null,null,null,true,{"$f":"+IF(AM61=TRUE,\"L0\",0)","v":"L0"},{"$f":"+IF(AN66<>0,AN66,IF(AN63<>0,AN63,IF(AN61<>0,AN61,0)))","v":"L0"}]
[]
[null,null,null,null,"agua de proceso con aditivos y agua de lavado que no contengan residuos especiales ó que no pudiesen generar residuos especiales                                                        provenientes de plantas de tratamiento en condiciones óptimas de funcionamiento",null,null,null,null,null,null,null,null,null,null,null,null,null,null,null,null,null,null,null,null,null,null,null,null,null,null,null,null,null,null,null,null,null,false,{"$f":"+IF(AM63=TRUE,\"L1\",0)","v":0}]
[]
[]
[null,null,null,null,"con residuos especiales, ó que pudiesen generar residuos especiales Que posean o deban poseer más de un tratamiento",null,null,null,null,null,null,null,null,null,null,null,null,null,null,null,null,null,null,null,null,null,null,null,null,null,null,null,null,null,null,null,null,null,{"$f":"FALSE","v":false},{"$f":"+IF(AM66=TRUE,\"L2\",0)","v":0}]
[]
[null,null,null,"Sólidos y Semisólidos "]
[]
[null,null,null,null,"asimilables a domiciliarios",null,null,null,null,null,null,null,null,null,null,null,null,null,null,null,null,null,null,null,null,null,null,null,null,null,null,null,null,null,null,null,null,null,true,{"$f":"+IF(AM70=TRUE,\"S0\",0)","v":"S0"},{"$f":"+IF(AN75<>0,AN75,IF(AN72<>0,AN72,IF(AN70<>0,AN70,0)))","v":"S0"}]
[]
[null,null,null,null,"resultantes del tratamiento de efluentes líquidos del tipo 0 y/o 1. Otros que no contengan residuos especiales ó de                                                      establecimientos que no pudiesen generar residuos especiales",null,null,null,null,null,null,null,null,null,null,null,null,null,null,null,null,null,null,null,null,null,null,null,null,null,null,null,null,null,null,null,null,null,false,{"$f":"+IF(AM72=TRUE,\"S1\",0)","v":0}]
[]
[]
[null,null,null,null,"que puedan contener sustancias peligrosas o pudiesen generar residuos especiales (por mes - promedio anual)",null,null,null,null,null,null,null,null,null,null,null,null,null,null,null,null,null,null,null,null,null,null,null,null,null,null,null,null,null,null,null,null,null,false,{"$f":"IF((MAX(AN77:AN83))=1,\"S1\",IF((MAX(AN77:AN83))=2,\"S2\",IF((MAX(AN77:AN83))=3,\"S3\",IF((MAX(AN77:AN83))=4,\"S4\",0))))","v":0}]
[]
[null,null,null,{"$f":"+IF(AM75=FALSE,\" \",IF(AM75=TRUE,IF(SUM(AN77:AN83)=0,\"ELEGIR UNO\",\" \")))","v":" "},null,null,null,null,"menor a 10 (diez) kg de masa",null,null,null,null,null,null,null,null,null,null,null,null,null,null,null,null,null,null,null,null,null,null,null,null,null,null,null,null,null,false,{"$f":"+IF(AM77=TRUE,1,0)","v":0}]
[]
[null,null,null,null,null,null,null,null,"mayor o igual a 10 (diez) kg pero menor que 100 (cien) kg de masa",null,null,null,null,null,null,null,null,null,null,null,null,null,null,null,null,null,null,null,null,null,null,null,null,null,null,null,null,null,false,{"$f":"+IF(AM79=TRUE,2,0)","v":0}]
[]
[null,null,null,null,null,null,null,null,"mayor o igual a 100 (cien) kg pero menor a 500 (quinientos) kg de masa",null,null,null,null,null,null,null,null,null,null,null,null,null,null,null,null,null,null,null,null,null,null,null,null,null,null,null,null,null,false,{"$f":"+IF(AM81=TRUE,3,0)","v":0}]
[]
[null,null,null,null,null,null,null,null,"mayor o igual a 500 (quinientos) kg de masa",null,null,null,null,null,null,null,null,null,null,null,null,null,null,null,null,null,null,null,null,null,null,null,null,null,null,null,null,null,{"$f":"FALSE","v":false},{"$f":"+IF(AM83=TRUE,4,0)","v":0}]
[null,null,null,null,null,null,null,null,null,null,null,null,null,null,null,null,null,null,null,null,null,null,null,null,null,null,null,null,null,null,null,null,null,null,null,null,null,null,null,null,"Tipo",0,1,2,3,4]
[null,null,null,"Tipo (resultado según la selección realizada)",null,null,null,null,null,null,null,null,null,null,null,null,null,null,null,null,null,null,{"$f":"+VLOOKUP(AM85,TIPO!$E$2:$F$97,2,0)","v":1},null,null,null,null,null,null,null,null,null,null,null,null,null,null,null,{"$f":"+AO53&AO61&AO70","v":"G1L0S0"},null,"VALOR",0,1,3,4,6]
[]
[]
[]
[]
[]
[null,null,null,"Información Complementaria",null,null,null,null,null,null,null,null,null,null,null,null,null,null,null,null,null,null,null,null,null,null,null,null,null,null,null,null,null,null,null,"marcar donde corresponda"]
[]
[null,null,null,"Riesgo",null,null,null,null,null,null,null,null,null,null,null,null,null,null,null,null,"Cantidad de personal"]
[]
[null,null,null,null,"Riesgo por aparatos sometidos a presión",null,null,null,null,null,null,null,null,null,null,null,null,null,null,null,null,"Hasta 15",null,null,null,null,null,null,null,null,null,null,null,null,null,null,null,null,true,{"$f":"+IF(AM95=TRUE,1,0)","v":1},null,{"$f":"FALSE","v":false},0,{"$f":"+MAX(AQ95:AQ103)","v":3}]
[]
[null,null,null,null,"Riesgo acústico",null,null,null,null,null,null,null,null,null,null,null,null,null,null,null,null,"Entre 16 y 50",null,null,null,null,null,null,null,null,null,null,null,null,null,null,null,null,false,{"$f":"+IF(AM97=TRUE,1,0)","v":0},null,{"$f":"FALSE","v":false},{"$f":"+IF(AP97=TRUE,1,0)","v":0}]
[]
[null,null,null,null,"Riesgo por sustancias químicas",null,null,null,null,null,null,null,null,null,null,null,null,null,null,null,null,"Entre 51 y 150",null,null,null,null,null,null,null,null,null,null,null,null,null,null,null,null,false,{"$f":"+IF(AM99=TRUE,1,0)","v":0},null,false,{"$f":"+IF(AP99=TRUE,2,0)","v":0}]
[]
[null,null,null,null,"Riesgo de explosión",null,null,null,null,null,null,null,null,null,null,null,null,null,null,null,null,"Entre 151 y 500",null,null,null,null,null,null,null,null,null,null,null,null,null,null,null,null,false,{"$f":"+IF(AM101=TRUE,1,0)","v":0},null,true,{"$f":"+IF(AP101=TRUE,3,0)","v":3}]
[]
[null,null,null,null,"Riesgo de incendio",null,null,null,null,null,null,null,null,null,null,null,null,null,null,null,null,"Más de 500",null,null,null,null,null,null,null,null,null,null,null,null,null,null,null,null,false,{"$f":"+IF(AM103=TRUE,1,0)","v":0},null,false,{"$f":"+IF(AP103=TRUE,4,0)","v":0}]
[]
[null,null,null,"Potencia instalada en HP",null,null,null,null,null,null,null,null,null,null,null,null,null,null,null,null,"Zona"]
[]
[null,null,null,null,"Hasta 25",null,null,null,null,null,null,null,null,null,null,null,null,null,null,null,null,"Parque industrial",null,null,null,null,null,null,null,null,null,null,null,null,null,null,null,null,{"$f":"FALSE","v":false},0,{"$f":"+MAX(AN107:AN113)","v":2},{"$f":"FALSE","v":false},0,{"$f":"+MAX(AQ107:AQ111)","v":2}]
[]
[null,null,null,null,"De 26 a 100",null,null,null,null,null,null,null,null,null,null,null,null,null,null,null,null,"Industrial Exclusiva y Rural",null,null,null,null,null,null,null,null,null,null,null,null,null,null,null,null,{"$f":"FALSE","v":false},{"$f":"+IF(AM109=TRUE,1,0)","v":0},null,false,{"$f":"+IF(AP109=TRUE,1,0)","v":0}]
[]
[null,null,null,null,"De 101 a 500",null,null,null,null,null,null,null,null,null,null,null,null,null,null,null,null,"El resto de las zonas",null,null,null,null,null,null,null,null,null,null,null,null,null,null,null,null,true,{"$f":"+IF(AM111=TRUE,2,0)","v":2},null,true,{"$f":"+IF(AP111=TRUE,2,0)","v":2}]
[]
[null,null,null,null,"Mayor de 500",null,null,null,null,null,null,null,null,null,null,null,null,null,null,null,null,null,null,null,null,null,null,null,null,null,null,null,null,null,null,null,null,null,false,{"$f":"+IF(AM113=TRUE,3,0)","v":0}]
[]
[null,null,null,"Relación Sup. cubierta / Sup. total",null,null,null,null,null,null,null,null,null,"Servicios corrientes",null,null,null,null,null,null,"Sistema de Gestión Ambiental certificado por un Organismo independiente"]
[]
[null,null,null,null,"Hasta 0.20",null,null,null,null,null,null,null,null,null,"Agua",null,null,null,null,null,null,null,null,null,null,null,null,null,null,null,null,null,null,null,null,null,null,null,true,0,{"$f":"+MAX(AN117:AN123)","v":0},true,{"$f":"+IF(AP117=TRUE,0,0.5)","v":0},{"$f":"+SUM(AQ117:AQ123)","v":0},null,1]
[]
[null,null,null,null,"De 0.21 hasta 0.50",null,null,null,null,null,null,null,null,null,"Cloaca",null,null,null,null,null,"Posee sustancias particularmente riesgosas                     en las cantidades definidas por la Resolución 1639/2007",null,null,null,null,null,null,null,null,null,null,null,null,null,null,null,null,null,{"$f":"FALSE","v":false},{"$f":"+IF(AM119=TRUE,1,0)","v":0},null,true,{"$f":"+IF(AP119=TRUE,0,0.5)","v":0}]
[]
[null,null,null,null,"De 0.51 a 0.80",null,null,null,null,null,null,null,null,null,"Luz",null,null,null,null,null,null,null,null,null,null,null,null,null,null,null,null,null,null,null,null,null,null,null,{"$f":"FALSE","v":false},{"$f":"+IF(AM121=TRUE,2,0)","v":0},null,true,{"$f":"+IF(AP121=TRUE,0,0.5)","v":0},null,null,1]
[]
[null,null,null,null,"De 0.81 a 1.00",null,null,null,null,null,null,null,null,null,"Gas ",null,null,null,null,null,null,null,null,null,null,null,null,null,null,null,null,null,null,null,null,null,null,null,false,{"$f":"+IF(AM123=TRUE,3,0)","v":0},null,true,{"$f":"+IF(AP123=TRUE,0,0.5)","v":0}]
[]
[]
[]
[null,null,null,"NCAi",null,null,"=",{"$f":"+Ru!F2","v":5},null,"+",{"$f":"+HLOOKUP(W85,$AP$84:$AT$85,2,0)","v":1},null,"+",{"$f":"+SUM(AN95:AN103)","v":1},null,"+",{"$f":"+AR95+AO107+AO117","v":5},null,"+",{"$f":"+AR107+AR117","v":2},null,"=",{"$f":"+H127+K127+N127+Q127+T127","v":14},null,null,null,null,null,"NCAi < 12"]
[null,null,null,null,null,null,null,"Ru",null,null,"ER",null,null,"Ri",null,null,"Di",null,null,"Lo"]
[]
[null,null,null,"Monto Básico"]
[]
[null,null,null,"FC",null,null,"=",null,1967,null,null,null,null,null,null,null,null,null,null,null,null,null,"NCA =",null,null,"NCAi",null,null,"+","AjSP",null,"-","AjSGA"]
[]
[null,null,null,"Ajuste",null,null,"=",null,{"$f":"+AO142","v":1.5},null,null,null,null,null,null,null,null,null,null,null,null,null,"NCA =",null,null,{"$f":"+W127","v":14},null,null,"+",{"$f":"+IF(AT121=1,2,0)","v":2},null,"-",{"$f":"+IF(AT117=1,4,0)","v":4}]
[]
[null,null,null,null,null,null,null,null,null,null,null,null,null,null,null,null,null,null,null,null,null,null,"NCA =",null,null,null,{"$f":"+Z134+AD134-AG134","v":12}]
[null,null,null,"MB",null,null,"=",null,{"$f":"+W127^2*I132*I134","v":578298}]
[]
[]
[null,null,null,"Establecimientos radicados en Cuenca Matanza Riachuelo ",null,null,null,null,null,null,null,null,null,null,null,null,null,"►►",null,null,"Declarado Agente Contaminante",null,null,null,null,null,null,null,null,null,null,null,null,null,null,null,null,null,"CUENCA MR","AG. CONTAM."]
[]
[null,null,null,null,null,null,null,null,null,null,null,null,null,null,null,null,null,null,null,null,null,null,null,null,null,null,null,null,null,null,null,null,null,null,null,null,null,null,{"$f":"+AN142","v":1},1,{"$f":"+IF(AM142=1,IF(AN142=1,1.5,1),1)","v":1.5}]
[]
[]
[null,null,null,"Factores de Vulnerabilidad"]
[]
[null,null,null,"Tipo de sustrato suprayacente a la zona saturada",null,null,null,null,null,null,null,null,null,null,null,null,null,null,null,null,null,null,null,null,null,null,null,null,null,null,null,null,null,null,null,"(TS)"]
[]
[null,null,null,null,"A Arcillas / suelos residuales / limos / loess / arcillas lutitas",null,null,null,null,null,null,null,null,null,null,null,null,null,null,null,null,null,null,null,null,null,null,null,null,null,null,null,null,null,null,null,null,null,true,{"$f":"+IF(AM149=TRUE,0.4,0)","v":0.4},{"$f":"+MAX(AN149:AN155)","v":0.4}]
[]
[null,null,null,null,"B Arenas / limolitas / tobas volcánicas / formaciones ígneas metamórficas y volcánicas / areniscas",null,null,null,null,null,null,null,null,null,null,null,null,null,null,null,null,null,null,null,null,null,null,null,null,null,null,null,null,null,null,null,null,null,{"$f":"FALSE","v":false},{"$f":"+IF(AM151=TRUE,0.6,0)","v":0}]
[]
[null,null,null,null,"C Gravas coluviales / calizas blandas / suelo no consolidado (sedimentos)",null,null,null,null,null,null,null,null,null,null,null,null,null,null,null,null,null,null,null,null,null,null,null,null,null,null,null,null,null,null,null,null,null,{"$f":"FALSE","v":false},{"$f":"+IF(AM153=TRUE,0.8,0)","v":0}]
[]
[null,null,null,null,"D Consolidado de rocas porosas o compactas / Desconocimiento del tipo de sustrato",null,null,null,null,null,null,null,null,null,null,null,null,null,null,null,null,null,null,null,null,null,null,null,null,null,null,null,null,null,null,null,null,null,{"$f":"FALSE","v":false},{"$f":"+IF(AM155=TRUE,1,0)","v":0}]
[]
[null,null,null,"Profundidad freática",null,null,null,null,null,null,null,null,null,null,null,null,null,null,"(PF)",null,"Entorno",null,null,null,null,null,null,null,null,null,null,null,null,null,null,"(ENT)"]
[]
[null,null,null,null,"Mayor a 10 metros",null,null,null,null,null,null,null,null,null,null,null,null,null,null,null,null,"Residencial o comercial",null,null,null,null,null,null,null,null,null,null,null,null,null,null,null,null,true,{"$f":"+IF(AM159=TRUE,1,0)","v":1},{"$f":"+MAX(AN159:AN163)","v":1},true,{"$f":"+IF(AP159=TRUE,2,0)","v":2},{"$f":"+MAX(AQ159:AQ161)","v":2}]
[]
[null,null,null,null,"Mayor a 5 metros y menor o igual a 10 metros",null,null,null,null,null,null,null,null,null,null,null,null,null,null,null,null,"Área protegida",null,null,null,null,null,null,null,null,null,null,null,null,null,null,null,null,false,{"$f":"+IF(AM161=TRUE,2,0)","v":0},null,{"$f":"FALSE","v":false},{"$f":"+IF(AP161=TRUE,6,0)","v":0}]
[]
[null,null,null,null,"Menor o Igual a 5 metros",null,null,null,null,null,null,null,null,null,null,null,null,null,null,null,null,"Ninguna de las anteriores",null,null,null,null,null,null,null,null,null,null,null,null,null,null,null,null,{"$f":"FALSE","v":false},{"$f":"+IF(AM163=TRUE,3,0)","v":0}]
[]
[null,null,null,"Distancia de los materiales peligrosos a agua superficial"]
[]
[null,null,null,null,"Mayor a 100 metros (DEA)",null,null,null,null,null,null,null,null,null,null,null,null,null,null,null,null,null,null,null,null,null,null,null,null,null,null,null,null,null,null,null,null,null,true,0,{"$f":"+IF(AN171=3,0,MAX(AN167:AN169))","v":0}]
[]
[null,null,null,null,"Menor o igual a 100 metros (DEA)",null,null,null,null,null,null,null,null,null,null,null,null,null,null,null,null,null,null,null,null,null,null,null,null,null,null,null,null,null,null,null,null,null,false,{"$f":"+IF(AM169=TRUE,1,0)","v":0}]
[]
[null,null,null,null,"Actividades costeras que incluyen carga y descarga de materiales por agua (COS)",null,null,null,null,null,null,null,null,null,null,null,null,null,null,null,null,null,null,null,null,null,null,null,null,null,null,null,null,null,null,null,null,null,{"$f":"FALSE","v":false},{"$f":"+IF(AM171=TRUE,3,0)","v":0}]
[]
[]
[null,null,null,"V","=",1,"+",{"$f":"+AO149","v":0.4},null,null,"*",{"$f":"+AO159","v":1},null,null,"+",{"$f":"+AO167","v":0},null,null,"+",{"$f":"+AN171","v":0},null,null,"+",{"$f":"+AR159","v":2},null,null,null,"=",null,{"$f":"+F174+H174*L174+P174+T174+X174","v":3.4}]
[null,null,null,null,null,null,null,"TS",null,null,null,"PF",null,null,null,"DEA",null,null,null,"COS",null,null,null,"ENT"]
[]
[null,null,null,"Factores de Existencias de Materiales Peligrosos y de Eliminación Programada"]
[]
[null,null,null,"Materiales Peligrosos"]
[]
[null,null,null,"Volumen sobre la superficie",null,null,null,null,null,null,null,null,null,null,null,null,null,null,null,null,null,null,null,null,null,null,null,50,null,null,null,null,null,"m3"]
[]
[null,null,null,"Volumen bajo la superficie",null,null,null,null,null,null,null,null,null,null,null,null,null,null,null,null,null,null,null,null,null,null,null,null,null,null,null,null,null,"m3"]
[]
[null,null,null,"Volumen bajo la superficie en contacto con el agua",null,null,null,null,null,null,null,null,null,null,null,null,null,null,null,null,null,null,null,null,null,null,null,null,null,null,null,null,null,"m3"]
[]
[]
[null,null,null,"MP",null,"=",null,null,null,{"$f":"0.5*AB181^0.2","v":1.0933620739432781},null,null,null,"+",null,{"$f":"+AB183^0.2","v":0},null,null,null,"+",null,{"$f":"1.5*AB185^0.2","v":0},null,null,null,"=",null,{"$f":"+J188+P188+V188","v":1.0933620739432781}]
[null,null,null,null,null,null,null,null,null,"MP sup",null,null,null,null,null,"MP ent",null,null,null,null,null,"MP aq"]
[]
[null,null,null,"Materiales Peligrosos - Eliminación Programada"]
[]
[null,null,null,"Volumen sobre la superficie",null,null,null,null,null,null,null,null,null,null,null,null,null,null,null,null,null,null,null,null,null,null,null,null,null,null,null,null,null,"Ton"]
[]
[null,null,null,"Volumen bajo la superficie",null,null,null,null,null,null,null,null,null,null,null,null,null,null,null,null,null,null,null,null,null,null,null,null,null,null,null,null,null,"Ton"]
[]
[null,null,null,"Volumen bajo la superficie en contacto con el agua",null,null,null,null,null,null,null,null,null,null,null,null,null,null,null,null,null,null,null,null,null,null,null,null,null,null,null,null,null,"Ton"]
[]
[]
[null,null,null,"EP",null,"=",null,null,null,{"$f":"+AB193^0.2","v":0},null,null,null,"+",null,{"$f":"2*AB195^0.2","v":0},null,null,null,"+",null,{"$f":"3*AB197^0.2","v":0},null,null,null,null,null,{"$f":"+J200+P200+V200","v":0}]
[null,null,null,null,null,null,null,null,null,"EP sup",null,null,null,null,null,"EP ent",null,null,null,null,null,"EP aq"]
[]
[]
[null,null,null,"D",null,"=",null,null,null,1,null,null,null,"+",null,{"$f":"+AB188","v":1.0933620739432781},null,null,null,"+",null,{"$f":"+AB200","v":0},null,null,null,null,null,{"$f":"+J204+P204+V204","v":2.0933620739432781}]
[null,null,null,null,null,null,null,null,null,null,null,null,null,null,null,"MP",null,null,null,null,null,"EP"]
[]
[null,null,null,"RESULTADO FINAL MMES"]
[]
[]
[null,null,null,null,null,null,null,null,null,null,null,null,null,null,null,null,null,null,null,null,null,null,null,null,null,null,null,{"$f":"+H211*P211*V211","v":4115996.1421666495}]
[null,null,null,"MMES",null,null,"=",{"$f":"+I137","v":578298},null,null,null,null,null,"*",null,{"$f":"+AD174","v":3.4},null,null,null,"*",null,{"$f":"+AB204","v":2.0933620739432781}]
[null,null,null,null,null,null,null,"MB",null,null,null,null,null,null,null,"V",null,null,null,null,null,"D"]
[]
[null,null,null,"Superficie Total del predio",null,null,null,null,null,null,null,null,null,null,null,null,null,"MMAES",null,null,null,null,null,null,null,null,null,{"$f":"+IF(AB210=3200,0,AB210)","v":4115996.1421666495}]
[]
[null,null,null,85400,null,null,null,null,null,null,"m2",null,null,"Ha",null,null,null,"Monto Mínimo Asegurable de Entidad Suficiente"]
[]
[null,null,null,"(*) datos obligatorios"]
[]
[null,null,null,"FC","=",{"$f":"I132","v":1967}]

{"sheet":"Desechos","index":1,"n_rows":47,"n_cols":1,"rows_kept":47,"cut":false,"hidden":true,"merged":[]}
["DESCRIPCION"]
["Y1 - Desechos clínicos resultantes de la atención médica prestada en hospitales, centros médicos y clínicas para salud humana y animal."]
["Y2 - Desechos resultantes de la producción y preparación de productos farmacéuticos."]
["Y3 - Desechos de medicamentos y productos farmacéuticos para la salud humana y animal."]
["Y4 - Desechos resultantes de la producción, la preparación y utilización de biocidas y productos fitosanitarios."]
["Y5 - Desechos resultantes de la fabricación, preparación y utilización de productos químicos para la preservación de la madera."]
["Y6 - Desechos resultantes de la producción, la preparación y la utilización de disolventes orgánicos."]
["Y7 - Desechos que contengan cianuros, resultantes del tratamiento térmico y las operaciones de temple."]
["Y8 - Desechos de aceites minerales no aptos para el uso a que estaban destinados."]
["Y9 - Mezclas y emulsiones de desecho de aceite y agua o de hidrocarburos y agua."]
["Y10 -  Sustancias y artículos de desecho que contengan o estén contaminados por bifenilos policlorados (PCB), trifenilos policlorados (PCT) o bifenilos polibromados (PBB)."]
["Y11 -  Residuos alquitranados resultantes de la refinación, destilación o cualquier otro tratamiento pirolítico."]
["Y12 -  Desechos resultantes de la producción, preparación y utilización de tintas, colorantes, pigmentos, pinturas, lacas o barnices."]
["Y13 -  Desechos resultantes de la producción, preparación y utilización de resinas, látex, plastificantes o colas y adhesivos."]
["Y14 -  Sustancias químicas de desecho, no identificadas o nuevas, resultantes de la investigación y el desarrollo o de las actividades de enseñanza y cuyos efectos en el ser humano o el medio ambiente no se conozcan."]
["Y15 -  Desechos de carácter explosivo que no estén sometidos a una legislación diferente."]
["Y16 -  Desechos resultantes de la producción, preparación y utilización de productos químicos y materiales para fines fotográficos."]
["Y17 -  Desechos resultantes del tratamiento de superficies de metales y plásticos."]
["Y18 -  Residuos resultantes de las operaciones de eliminación de desechos industriales."]
["Y19 -  Metales carbonilos."]
["Y20 -  Berilio, compuesto de berilio."]
["Y21 -  Compuestos de cromo hexavalente."]
["Y22 -  Compuestos de cobre."]
["Y23 -  Compuestos de zinc."]
["Y24 -  Arsénico, compuestos de arsénico."]
["Y25 -  Selenio, compuestos de selenio."]
["Y26 -  Cadmio, compuestos de cadmio."]
["Y27 -  Antimonio, compuestos de antimonio."]
["Y28 -  Telurio, compuestos de telurio."]
["Y29 -  Mercurio, compuestos de mercurio."]
["Y30 -  Talio, compuestos de talio."]
["Y31 -  Plomo, compuestos de plomo."]
["Y32 -  Compuestos inorgánicos de flúor, con exclusión de fluoruro cálcico."]
["Y33 -  Cianuros inorgánicos."]
["Y34 -  Soluciones ácidas o ácidos en forma sólida."]
["Y35 -  Soluciones básicas o bases en forma sólida."]
["Y36 -  Asbestos (polvo y fibras)."]
["Y37 -  Compuestos orgánicos de fósforo."]
["Y38 -  Cianuros orgánicos."]
["Y39 -  Fenoles, compuestos fenólicos, con inclusión de clorofenoles."]
["Y40 -  Eteres."]
["Y41 -  Solventes orgánicos halogenados."]
["Y42 -  Disolventes orgánicos, con exclusión de disolventes halogenados."]
["Y43 -  Cualquier sustancia del grupo de los dibenzofuranos policlorados."]
["Y44 -  Cualquier sustancia del grupo de las dibenzoparadioxinas policloradas."]
["Y45 -  Compuestos organohalogenados, que no sean las sustancias mencionadas en el presente anexo (por ejemplo, Y39, Y41, Y42, Y43, Y44)."]
["Y48 - Todos los materiales y/o elementos diversos contaminados con alguno o algunos de los residuos peligrosos identificados en el Anexo I o que presenten alguna o algunas de las características peligrosas enumeradas en el Anexo II de la Ley de Residuos Peligrosos cuyo destino sea o deba ser una Operación de Eliminación según el Anexo III de la citada ley. A los efectos de la presente norma, se considerarán, en forma no excluyente, materiales diversos y/o elementos diversos contaminados, a los envases, contenedores y/o recipientes en general, tanques, silos, trapos, tierras, filtros, artículos y/o prendas de vestir de uso sanitario y/o industrial y/o de hotelería hospitalaria cuyo destino sea o deba ser una Operación de Eliminación de las previstas en el Anexo III de la presente Ley."]

{"sheet":"Desarrollo","index":2,"n_rows":71,"n_cols":33,"rows_kept":71,"cut":false,"hidden":true,"merged":[[10,1,10,2],[10,13,10,14],[2,1,2,25],[2,26,2,33],[4,1,4,25],[4,26,4,33],[6,1,6,33],[8,1,8,2],[8,32,8,33],[18,32,18,33],[18,1,18,2],[18,5,18,6],[11,1,11,2],[16,1,16,6],[11,32,11,33],[13,1,13,2],[13,32,13,33],[15,1,15,6],[15,13,15,14],[26,17,26,18],[26,1,26,3],[26,5,26,6],[16,13,16,14],[17,1,17,10],[17,13,17,14],[20,1,20,6],[20,13,20,14],[21,1,21,10],[26,8,26,9],[26,11,26,12],[21,13,21,14],[22,1,22,2],[26,14,26,15],[24,17,24,18],[22,5,22,6],[30,14,30,15],[30,17,30,18],[28,1,28,3],[28,30,28,33],[30,8,30,9],[30,11,30,13],[30,1,30,3],[30,5,30,6],[36,1,36,3],[36,5,36,8],[38,1,38,3],[38,5,38,8],[22,32,22,33],[24,1,24,3],[24,5,24,6],[24,8,24,9],[24,11,24,12],[24,14,24,15],[40,1,40,3],[40,30,40,33],[32,14,32,15],[32,17,32,18],[32,1,32,3],[32,5,32,6],[32,8,32,9],[32,11,32,12],[34,1,34,3],[34,30,34,33],[44,11,44,13],[48,7,48,9],[44,15,44,17],[44,19,44,21],[46,1,46,3],[46,30,46,33],[58,30,58,33],[50,19,50,21],[48,1,48,3],[44,23,44,25],[42,7,42,9],[42,11,42,13],[42,15,42,17],[42,19,42,21],[42,23,42,25],[44,7,44,9],[56,1,56,3],[56,7,56,9],[56,13,56,15],[56,19,56,21],[48,13,48,15],[50,7,50,9],[50,13,50,15],[52,1,52,3],[48,19,48,21],[50,1,50,3],[52,30,52,33],[60,1,60,3],[60,7,60,9],[54,13,54,15],[54,19,54,21],[54,1,54,3],[60,19,60,21],[58,1,58,3],[54,7,54,9],[70,29,70,33],[64,1,64,3],[64,30,64,33],[66,5,66,9],[66,13,66,15],[66,19,66,21],[68,5,68,9],[68,13,68,15],[60,13,60,15],[68,19,68,21],[70,1,70,3],[62,1,62,3],[62,7,62,9],[62,13,62,15],[62,19,62,21]]}
[]
[null,"Razón Social (*)",null,null,null,null,null,null,null,null,null,null,null,null,null,null,null,null,null,null,null,null,null,null,null,null,"Fecha (*)"]
[null,{"$f":"+MMES!D9","v":0},null,null,null,null,null,null,null,null,null,null,null,null,null,null,null,null,null,null,null,null,null,null,null,null,{"$f":"+MMES!AC9","v":"2017-06-01"}]
[null,"Denominación de la Planta (*)",null,null,null,null,null,null,null,null,null,null,null,null,null,null,null,null,null,null,null,null,null,null,null,null,"CUIT (*)"]
[null,{"$f":"+MMES!D11","v":0},null,null,null,null,null,null,null,null,null,null,null,null,null,null,null,null,null,null,null,null,null,null,null,null,{"$f":"+MMES!AC11","v":0}]
[null,"Domicilio - Localidad - Provincia -UBICACIÓN DEL RIESGO- (*)"]
[null,{"$f":"+MMES!D13","v":0}]
[]
[null,"Ru",null,null,"=",null,null,null,null,null,null,null,null,null,null,null,null,null,null,null,null,null,null,null,null,null,null,null,null,null,null,null,{"$f":"+MMES!H127","v":5}]
[]
[null,"Tipo",null,null,null,null,null,null,null,null,null,null,"=",{"$f":"+MMES!W85","v":1}]
[null,"ER",null,null,"=",null,null,null,null,null,null,null,null,null,null,null,null,null,null,null,null,null,null,null,null,null,null,null,null,null,null,null,{"$f":"+MMES!K127","v":1}]
[]
[null,"Ri",null,null,"=",null,null,null,null,null,null,null,null,null,null,null,null,null,null,null,null,null,null,null,null,null,null,null,null,null,null,null,{"$f":"+MMES!N127","v":1}]
[]
[null,"Cantidad de Personal",null,null,null,null,null,null,null,null,null,null,"=",{"$f":"+MMES!AR95","v":3}]
[null,"Potencia Instalada",null,null,null,null,null,null,null,null,null,null,"=",{"$f":"+MMES!AO107","v":2}]
[null,"Relación Sup. cubierta / Sup. total",null,null,null,null,null,null,null,null,null,null,"=",{"$f":"+MMES!AO117","v":0}]
[null,"Di",null,null,"=",null,null,null,null,null,null,null,null,null,null,null,null,null,null,null,null,null,null,null,null,null,null,null,null,null,null,null,{"$f":"+MMES!Q127","v":5}]
[]
[null,"Zona",null,null,null,null,null,null,null,null,null,null,"=",{"$f":"+MMES!AR107","v":2}]
[null,"Servicios Corrientes",null,null,null,null,null,null,null,null,null,null,"=",{"$f":"+MMES!AR117","v":0}]
[null,"Lo",null,null,"=",null,null,null,null,null,null,null,null,null,null,null,null,null,null,null,null,null,null,null,null,null,null,null,null,null,null,null,{"$f":"+MMES!T127","v":2}]
[]
[null,"NCAi",null,null,"=","Ru",null,"+","ER",null,"+","Ri",null,"+","Di",null,"+","Lo"]
[]
[null,"NCAi",null,null,"=",{"$f":"+MMES!H127","v":5},null,"+",{"$f":"+MMES!K127","v":1},null,"+",{"$f":"+MMES!N127","v":1},null,"+",{"$f":"+MMES!Q127","v":5},null,"+",{"$f":"+MMES!T127","v":2}]
[]
[null,"NCAi",null,null,"=",null,null,null,null,null,null,null,null,null,null,null,null,null,null,null,null,null,null,null,null,null,null,null,null,null,{"$f":"+F27+I27+L27+O27+R27","v":14}]
[]
[null,"NCA",null,null,"=","NCAi",null,"+","AjSP",null,"-","AjSGA"]
[]
[null,"NCA",null,null,"=",{"$f":"+MMES!W127","v":14},null,"+",{"$f":"+MMES!AD134","v":2},null,"-",{"$f":"+MMES!AG134","v":4}]
[]
[null,"NCA",null,null,"=",null,null,null,null,null,null,null,null,null,null,null,null,null,null,null,null,null,null,null,null,null,null,null,null,null,{"$f":"+MMES!AA136","v":12}]
[]
[null,"FC",null,null,"=",{"$f":"+MMES!I132","v":1967}]
[]
[null,"Ajuste",null,null,"=",{"$f":"+MMES!I134","v":1.5}]
[]
[null,"MB",null,null,"=",null,null,null,null,null,null,null,null,null,null,null,null,null,null,null,null,null,null,null,null,null,null,null,null,null,{"$f":"+MMES!I137","v":578298}]
[]
[null,"V",null,null,"=",1,"+","TS",null,null,"*","PF",null,null,"+","DEA",null,null,"+","COS",null,null,"+","ENT"]
[]
[null,"V",null,null,"=",1,"+",{"$f":"+MMES!H174","v":0.4},null,null,"*",{"$f":"+MMES!L174","v":1},null,null,"+",{"$f":"+MMES!P174","v":0},null,null,"+",{"$f":"+MMES!T174","v":0},null,null,"+",{"$f":"+MMES!X174","v":2}]
[]
[null,"V",null,null,"=",null,null,null,null,null,null,null,null,null,null,null,null,null,null,null,null,null,null,null,null,null,null,null,null,null,{"$f":"+MMES!AD174","v":3.4}]
[]
[null,"MP",null,null,"=",null,null,"MP sup",null,null,null,"+",null,"MP ent",null,null,null,"+",null,"MP aq"]
[]
[null,"MP",null,null,"=",null,null,{"$f":"+MMES!J188","v":1.0933620739432781},null,null,null,"+",null,{"$f":"+MMES!P188","v":0},null,null,null,"+",null,{"$f":"+MMES!V188","v":0}]
[]
[null,"MP",null,null,"=",null,null,null,null,null,null,null,null,null,null,null,null,null,null,null,null,null,null,null,null,null,null,null,null,null,{"$f":"+H51+N51+T51","v":1.0933620739432781}]
[]
[null,"EP",null,null,"=",null,null,"EP sup",null,null,null,"+",null,"EP ent",null,null,null,"+",null,"EP aq"]
[]
[null,"EP",null,null,"=",null,null,{"$f":"+MMES!J200","v":0},null,null,null,"+",null,{"$f":"+MMES!P200","v":0},null,null,null,"+",null,{"$f":"+MMES!V200","v":0}]
[]
[null,"EP",null,null,"=",null,null,null,null,null,null,null,null,null,null,null,null,null,null,null,null,null,null,null,null,null,null,null,null,null,{"$f":"+H57+N57+T57","v":0}]
[]
[null,"D",null,null,"=",null,null,1,null,null,null,"+",null,"MP",null,null,null,"+",null,"EP"]
[]
[null,"D",null,null,"=",null,null,{"$f":"+H61","v":1},null,null,null,"+",null,{"$f":"+AE53","v":1.0933620739432781},null,null,null,"+",null,{"$f":"+AE59","v":0}]
[]
[null,"D",null,null,"=",null,null,null,null,null,null,null,null,null,null,null,null,null,null,null,null,null,null,null,null,null,null,null,null,null,{"$f":"+H63+N63+T63","v":2.0933620739432781}]
[]
[null,"MMES",null,null,"=","MB",null,null,null,null,null,"*",null,"V",null,null,null,"*",null,"D"]
[]
[null,"MMES",null,null,"=",{"$f":"+AE41","v":578298},null,null,null,null,null,"*",null,{"$f":"+AE47","v":3.4},null,null,null,"*",null,{"$f":"+AE65","v":2.0933620739432781}]
[]
[null,"MMES",null,null,"=",null,null,null,null,null,null,null,null,null,null,null,null,null,null,null,null,null,null,null,null,null,null,null,null,{"$f":"+F69*N69*T69","v":4115996.1421666495}]

{"sheet":"Recomendacion","index":3,"n_rows":47,"n_cols":27,"rows_kept":47,"cut":false,"hidden":true,"merged":[[8,1,8,33],[1,1,1,33],[4,1,4,25],[4,26,4,33],[6,1,6,25],[6,26,6,33],[10,1,10,8],[10,13,10,20],[10,26,10,33],[11,1,11,8],[11,13,11,20],[11,26,11,33],[12,26,12,33],[15,1,15,33],[16,1,16,33],[20,1,20,16],[20,18,20,33],[19,1,19,16],[19,18,19,33],[12,1,12,8],[12,13,12,20],[23,1,23,16],[23,18,23,33],[24,1,24,16],[24,18,24,33],[21,1,21,16],[21,18,21,33],[22,1,22,16],[22,18,22,33],[27,1,27,16],[27,18,27,33],[28,1,28,16],[28,18,28,33],[25,1,25,16],[25,18,25,33],[26,1,26,16],[26,18,26,33],[31,1,31,16],[31,18,31,33],[32,1,32,16],[32,18,32,33],[29,1,29,16],[29,18,29,33],[30,1,30,16],[30,18,30,33],[36,18,36,33],[37,1,37,16],[33,1,33,16],[33,18,33,33],[34,1,34,16],[34,18,34,33],[37,18,37,33],[45,1,45,16],[35,1,35,16],[35,18,35,33],[46,18,46,33],[38,1,38,16],[38,18,38,33],[39,1,39,16],[39,18,39,33],[36,1,36,16]]}
[]
[null,"RECOMENDACIÓN"]
[]
[null,"Razón Social (*)",null,null,null,null,null,null,null,null,null,null,null,null,null,null,null,null,null,null,null,null,null,null,null,null,"Fecha (*)"]
[null,{"$f":"+MMES!D9","v":0},null,null,null,null,null,null,null,null,null,null,null,null,null,null,null,null,null,null,null,null,null,null,null,null,{"$f":"+MMES!AC9","v":"2017-06-01"}]
[null,"Denominación de la Planta (*)",null,null,null,null,null,null,null,null,null,null,null,null,null,null,null,null,null,null,null,null,null,null,null,null,"CUIT (*)"]
[null,{"$f":"+MMES!D11","v":0},null,null,null,null,null,null,null,null,null,null,null,null,null,null,null,null,null,null,null,null,null,null,null,null,{"$f":"+MMES!AC11","v":0}]
[null,"Domicilio - Localidad - Provincia -UBICACIÓN DEL RIESGO- (*)"]
[null,{"$f":"+MMES!D13","v":0}]
[]
[null,"MMES DETERMINADO POR EL",null,null,null,null,null,null,null,null,null,null,null,"MMES DETERMINADO POR LA",null,null,null,null,null,null,null,null,null,null,null,null,"MMES DETERMINADO POR"]
[null,"TOMADOR",null,null,null,null,null,null,null,null,null,null,null,"ASEGURADORA",null,null,null,null,null,null,null,null,null,null,null,null,"KOMALIA S.A."]
[null,null,null,null,null,null,null,null,null,null,null,null,null,null,null,null,null,null,null,null,null,null,null,null,null,null,{"$f":"+MMES!AB214","v":4115996.1421666495}]
[]
[null,"JUSTIFICACIÓN"]
[]
[]
[]
[null,"DOCUMENTACIÓN PENDIENTE DE ENTREGA"]
[]
[]
[]
[]
[]
[]
[]
[]
[]
[]
[]
[]
[]
[]
[]
[]
[]
[]
[]
[]
[]
[]
[]
[]
[]
[null,"Auditor"]
[]
[null,null,null,null,null,null,null,null,null,null,null,null,null,null,null,null,null,null,"Firma"]

{"sheet":"Ru","index":4,"n_rows":177,"n_cols":9,"rows_kept":177,"cut":false,"hidden":true,"merged":[]}
[1,"SELECCIONAR RUBRO PRINCIPAL",null,null,null,null,null,null,"SELECCIONAR"]
[2,"101000 - Extracción y aglomeración de carbón",2,5,2,{"$f":"+IF(E2>=160,VLOOKUP(E163,$A$165:$D$177,4),VLOOKUP(E2,$A$1:$D$162,4))","v":5},null,null,"SAyDS - Secretaría de Ambiente y Desarrollo Sustentable de la Nación"]
[3,"102000 - Extracción y aglomeración de lignito",2,5,null,null,null,null,"OPDS - Organismo Provincial para el Desarrollo Sostenible - Pcia. Bs. As."]
[4,"103000 - Extracción y aglomeración de turba",1,1,null,null,null,null,"ACUMAR - Autoridad de Cuenca Matanza Riachuelo"]
[5,"111000 - Extracción de petróleo crudo y gas natural",3,10,null,null,null,null,"APRA - Agencia de Protección Ambiental - C.A.B.A."]
[6,"112000 - Actividades de servicios relacionadas con la extracción de petróleo y gas, excepto las actividades de prospección",2,5,null,null,null,null,"Otro: detallar debajo"]
[7,"120000 - Extracción de minerales y concentrados de uranio y torio",3,10,null,null,null,null,"NINGUNO"]
[8,"131000 - Extracción de minerales de hierro",3,10]
[9,"132000 - Extracción de minerales metalíferos no ferrosos, excepto minerales de uranio y torio",3,10]
[10,"141100 - Extracción de rocas ornamentales",1,1]
[11,"141200 - Extracción de piedra caliza y yeso",1,1]
[12,"141300 - Extracción de arenas, canto rodado y triturados pétreos",1,1]
[13,"141400 - Extracción de arcilla y caolín",1,1]
[14,"142110 - Extracción de minerales para la fabricación de abonos excepto turba.",1,1]
[15,"142120 - Extracción de minerales para la fabricación de productos químicos",1,1]
[16,"142200 - Extracción de sal en salinas y de roca",1,1]
[17,"142900 - Explotación de minas y canteras n.c.p.",1,1]
[18,"151111 - Matanza de ganado bovino ",1,1]
[19,"151112 - Procesamiento de carne de ganado bovino",1,1]
[20,"151113 - Saladero y peladero de cueros de ganado bovino",1,1]
[21,"154200 - Elaboración de azúcar",2,5]
[22,"155110 - Destilación de alcohol etílico",2,5]
[23,"155120 - Destilación, rectificación y mezcla de bebidas espiritosas",2,5]
[24,"171120 - Preparación de fibras animales de uso textil, incluso lavado de lana",1,1]
[25,"171200 - Acabado de productos textiles",2,5]
[26,"191100 - Curtido y terminación de cueros",3,10]
[27,"201000 - Aserrado y cepillado de madera",2,5]
[28,"202100 - Fabricación de hojas de madera para enchapado; fabricación de tableros contrachapados; tableros laminados; tableros de partículas y tableros y paneles n.c.p.",2,5]
[29,"210101 - Fabricación de pulpa de madera",3,10]
[30,"210102 - Fabricación de papel y cartón excepto envases",2,5]
[31,"231000 - Fabricación de productos de hornos de coque",3,10]
[32,"232000 - Fabricación de productos de la refinación del petróleo",3,10]
[33,"241110 - Fabricación de gases comprimidos y licuados.",3,10]
[34,"241120 - Fabricación de curtientes naturales y sintéticos.",3,10]
[35,"241130 - Fabricación de materias colorantes básicas, excepto pigmentos preparados.",2,5]
[36,"241180 - Fabricación de materias químicas inorgánicas básicas n.c.p.",3,10]
[37,"241190 - Fabricación de materias químicas orgánicas básicas n.c.p.",3,10]
[38,"241200 - Fabricación de abonos y compuestos de nitrógeno",1,1]
[39,"241301 - Fabricación de resinas y cauchos sintéticos",3,10]
[40,"241309 - Fabricación de materias plásticas en formas primarias n.c.p.",3,10]
[41,"242100 - Fabricación de plaguicidas y productos químicos de uso agropecuario ",3,10]
[42,"242200 - Fabricación de pinturas; barnices y productos de revestimiento similares; tintas de imprenta y masillas",3,10]
[43,"242310 - Fabricación de medicamentos de uso humano y productos farmacéuticos",2,5]
[44,"242320 - Fabricación de medicamentos de uso veterinario",2,5]
[45,"242390 - Fabricación de productos de laboratorio, sustancias químicas medicinales y productos botánicos n.c.p.",2,5]
[46,"242411 - Fabricación de preparados para limpieza, pulido y saneamiento ",3,10]
[47,"242412 - Fabricación de jabones y detergentes",2,5]
[48,"242490 - Fabricación de cosméticos, perfumes y productos de higiene y tocador",2,5]
[49,"242901 - Fabricación de tintas",3,10]
[50,"242902 - Fabricación de explosivos, municiones y productos de pirotecnia",3,10]
[51,"242903 - Fabricación de colas, adhesivos, aprestos y cementos excepto los odontológicos obtenidos de sustancias minerales y vegetales",3,10]
[52,"242909 - Fabricación de productos químicos n.c.p.",2,5]
[53,"251110 - Fabricación de cubiertas y cámaras",3,10]
[54,"251120 - Recauchutado y renovación de cubiertas",2,5]
[55,"251901 - Fabricación de autopartes de caucho excepto cámaras y cubiertas",3,10]
[56,"251909 - Fabricación de productos de caucho n.c.p.",3,10]
[57,"252010 - Fabricación de envases plásticos",2,5]
[58,"252090 - Fabricación de productos plásticos en formas básicas y artículos de plástico n.c.p., excepto muebles",2,5]
[59,"261010 - Fabricación de envases de vidrio",2,5]
[60,"261020 - Fabricación y elaboración de vidrio plano",2,5]
[61,"261091 - Fabricación de espejos y vitrales",1,1]
[62,"261099 - Fabricación de productos de vidrio n.c.p.",1,1]
[63,"269110 - Fabricación de artículos sanitarios de cerámica",1,1]
[64,"269191 - Fabricación de objetos cerámicos para uso industrial y de laboratorio",1,1]
[65,"269192 - Fabricación de objetos cerámicos para uso doméstico excepto artefactos sanitarios",1,1]
[66,"269193 - Fabricación de objetos cerámicos excepto revestimientos de pisos y paredes n.c.p.",1,1]
[67,"269200 - Fabricación de productos de cerámica refractaria",1,1]
[68,"269301 - Fabricación de ladrillos ",1,1]
[69,"269302 - Fabricación de revestimientos cerámicos ",1,1]
[70,"269309 - Fabricación de productos de arcilla y cerámica no refractaria para uso estructural n.c.p. ",1,1]
[71,"269410 - Elaboración de cemento",2,5]
[72,"269421 - Elaboración de yeso",2,5]
[73,"269422 - Elaboración de cal",2,5]
[74,"269510 - Fabricación de mosaicos",1,1]
[75,"269591 - Fabricación de artículos de cemento y fibrocemento",1,1]
[76,"269592 - Fabricación de premoldeadas para la construcción",1,1]
[77,"269600 - Corte, tallado y acabado de la piedra",1,1]
[78,"269910 - Elaboración primaria n.c.p. de minerales no metálicos",1,1]
[79,"269990 - Fabricación de productos minerales no metálicos n.c.p.",1,1]
[80,"271001 - Fundición en altos hornos y acerías. Producción de lingotes, planchas o barras",3,10]
[81,"271002 - Laminación y estirado",3,10]
[82,"271009 - Fabricación en industrias básicas de productos de hierro y acero n.c.p.",3,10]
[83,"272010 - Elaboración de aluminio primario y semielaborados de aluminio",3,10]
[84,"272090 - Producción de metales no ferrosos n.c.p. y sus semielaborados",3,10]
[85,"273100 - Fundición de hierro y acero",3,10]
[86,"273200 - Fundición de metales no ferrosos",3,10]
[87,"281101 - Fabricación de carpintería metálica",2,5]
[88,"281102 - Fabricación de estructuras metálicas para la construcción",2,5]
[89,"281200 - Fabricación de tanques, depósitos y recipientes de metal",2,5]
[90,"281300 - Fabricación de generadores de vapor",2,5]
[91,"289100 - Forjado, prensado, estampado y laminado de metales; pulvimetalurgia",2,5]
[92,"289200 - Tratamiento y revestimiento de metales; obras de ingeniería mecánica en general realizadas a cambio de una retribución o por contrata",2,5]
[93,"289301 - Fabricación de herramientas manuales y sus accesorios",2,5]
[94,"289302 - Fabricación de artículos de cuchillería y utensillos de mesa y de cocina",2,5]
[95,"289309 - Fabricación de cerraduras, herrajes y artículos de ferretería n.c.p.",2,5]
[96,"289910 - Fabricación de envases metálicos",2,5]
[97,"289991 - Fabricación de tejidos de alambre",2,5]
[98,"289992 - Fabricación de cajas de seguridad",2,5]
[99,"289993 - Fabricación de productos metálicos de tornería y/o matricería",2,5]
[100,"289999 - Fabricación de productos metálicos n.c.p.",2,5]
[101,"291100 - Fabricación de motores y turbinas, excepto motores para aeronaves, vehículos automotores y motocicletas",2,5]
[102,"291200 - Fabricación de bombas; compresores; grifos y válvulas",2,5]
[103,"291300 - Fabricación de cojinetes; engranajes; trenes de engranaje y piezas de transmisión",2,5]
[104,"291400 - Fabricación de hornos; hogares y quemadores",2,5]
[105,"291500 - Fabricación de equipo de elevación y manipulación",2,5]
[106,"291900 - Fabricación de maquinaria de uso general n.c.p.",2,5]
[107,"292110 - Fabricación de tractores",2,5]
[108,"292190 - Fabricación de maquinaria agropecuaria y forestal, excepto tractores",2,5]
[109,"292200 - Fabricación de máquinas herramienta",2,5]
[110,"292300 - Fabricación de maquinaria metalúrgica",2,5]
[111,"292400 - Fabricación de maquinaria para la explotación de minas y canteras y para obras de construcción",2,5]
[112,"292500 - Fabricación de maquinaria para la elaboración de alimentos, bebidas y tabaco",2,5]
[113,"292600 - Fabricación de maquinaria para la elaboración de productos textiles, prendas de vestir y cueros",2,5]
[114,"292700 - Fabricación de armas y municiones",2,5]
[115,"292901 - Fabricación de maquinaria para la industria del papel y las artes gráficas",2,5]
[116,"292909 - Fabricación de maquinaria de uso especial n.c.p.",2,5]
[117,"293010 - Fabricación de cocinas, calefones, estufas y calefactores de uso doméstico no eléctricos",2,5]
[118,"293020 - Fabricación de heladeras, \"freezers\", lavarropas y secarropas",2,5]
[119,"293091 - Fabricación de máquinas de coser y tejer",2,5]
[120,"293092 - Fabricación de ventiladores, extractores y acondicionadores de aire, aspiradoras y similares",2,5]
[121,"293093 - Fabricación de enceradoras, pulidoras, batidoras, licuadoras y similares",2,5]
[122,"293094 - Fabricación de planchas, calefactores, hornos eléctricos, tostadoras y otros aparatos generadores de calor",2,5]
[123,"293095 - Fabricación de artefactos para iluminación excepto los eléctricos",2,5]
[124,"293099 - Fabricación de aparatos y accesorios eléctricos n.c.p.",2,5]
[125,"311000 - Fabricación de motores, generadores y transformadores eléctricos",2,5]
[126,"312000 - Fabricación de aparatos de distribución y control de la energía eléctrica",2,5]
[127,"313000 - Fabricación de hilos y cables aislados",2,5]
[128,"314000 - Fabricación de acumuladores y de pilas y baterías primarias",2,5]
[129,"315000 - Fabricación de lámparas eléctricas y equipo de iluminación",2,5]
[130,"319000 - Fabricación de equipo eléctrico n.c.p.",2,5]
[131,"321000 - Fabricación de tubos, válvulas y otros componentes electrónicos ",2,5]
[132,"322000 - Fabricación de transmisores de radio y televisión y de aparatos para telefonía y telegrafía con hilos",2,5]
[133,"323000 - Fabricación de receptores de radio y televisión, aparatos de grabación y reproducción de sonido y video, y productos conexos",2,5]
[134,"341000 - Fabricación de vehículos automotores",2,5]
[135,"342000 - Fabricación de carrocerías para vehículos automotores; fabricación de remolques y semirremolques",2,5]
[136,"343000 - Fabricación de partes; piezas y accesorios para vehículos automotores y sus motores",2,5]
[137,"351100 - Construcción y reparación de buques",3,10]
[138,"351200 - Construcción y reparación de embarcaciones de recreo y deporte",2,5]
[139,"352000 - Fabricación de locomotoras y de material rodante para ferrocarriles y tranvías",2,5]
[140,"353000 - Fabricación y reparación de aeronaves ",2,5]
[141,"359100 - Fabricación de motocicletas",2,5]
[142,"359200 - Fabricación de bicicletas y de sillones de ruedas para inválidos",1,1]
[143,"371000 - Reciclamiento de desperdicios y desechos metálicos",2,5]
[144,"372000 - Reciclamiento de desperdicios y desechos no metálicos",2,5]
[145,"401110 - Generación de energía térmica convencional",3,10]
[146,"401130 - Generación de energía hidráulica",1,1]
[147,"401190 - Generación de energía n.c.p.",1,1]
[148,"401200 - Transporte de energía eléctrica",2,5]
[149,"401300 - Distribución de energía eléctrica",2,5]
[150,"402001 - Fabricación y distribución de gas",2,5]
[151,"402009 - Fabricación y distribución de combustibles gaseosos n.c.p.",2,5]
[152,"410010 - Captación, depuración y distribución de agua de fuentes subterráneas",2,5]
[153,"410020 - Captación, depuración y distribución de agua de fuentes superficiales",2,5]
[154,"505000 - Venta al por menor de combustible para vehículos automotores y motocicletas",3,10]
[155,"851110 - Servicios de internación",1,1]
[156,"851400 - Servicios de diagnóstico",1,1]
[157,"900010 - Recolección, reducción y eliminación de desperdicios",3,10]
[158,"900020 - Servicios de depuración de aguas residuales, alcantarillado y cloacas",3,10]
[159,"900090 - Servicios de saneamiento público n.c.p.",2,5]
[160,"999999 - Depósitos de gases, hidrocarburos y sus derivados, y productos químicos (Item 28.1.)",3,10]
[161,"999999 - Construcción de grandes obras de infraestructura (Item 28.2.)",3,10]
[162,"999999 - Toda otra actividad que elabore o manipule sustancias inflamables, tóxicas, corrosivas, de alta reactividad química, infecciosas, teratogénicas, mutagénicas, carcinógenas o radioactivas (Item 28.3.)",3,10]
[null,null,null,null,2]
[]
[1,null,null,null,null,null,"  "]
[2,"SUST. PELIGROSAS (RES.1639/07) + GENERADORA RESIDUOS PELIGROSOS O ESPECIALES",3,10,null,null,"RES. 481/2011 - El Establecimiento acopia sustancias peligrosas (incluyendo residuos peligrosos) por encima de los niveles de umbral establecidos en el Anexo II de la Res. 1639/07 y además está obligado a cumplir con la inscripción como generadora de residuos peligrosos o especiales por la normativa de la jurisdicción. ACOPIO: cantidad máxima cualquier día del año."]
[3,"REGULADO POR SECRETARÍA DE ENERGÍA + GENERADORA RESIDUOS PELIGROSOS O ESPECIALES",3,10,null,null,"RES. 481/2011 - El Establecimiento debe cumplir con requerimientos regulatorios de la Secretaría de Energía para el almacenamiento de combustibles y además está obligado a cumplir con la inscripción como generadora de residuos peligrosos o especiales por la normativa de la jurisdicción"]
[4,"25m³ Ó MAS DE SUSTANCIAS PELIGROSAS Y/O RESIDUOS PELIGROSOS",3,10,null,null,"RES. 481/2011 - El Establecimiento acopia un volumen igual o superior a 25m³ de sustancias peligrosas o sus mezclas líquidas o semisólidas (incluidos residuos de éstas clasificados como peligrosos o especiales por la normativa jurisdiccional). ACOPIO: cantidad máxima cualquier día del año."]
[5,"1m³ Ó MAS DE SUSTANCIAS PELIGROSAS DE ELIMINACIÓN PROGRAMADA",3,10,null,null,"RES. 481/2011 - El Establecimiento acopia una cantidad igual o superior a 1m³ de sustancias o sus mezclas (incluidos los residuos) de eliminación programada por normativa específica para la sustancia, en cualquier estado de agregación. ACOPIO: cantidad máxima cualquier día del año."]
[6,"EXPLOSIVOS",3,10,null,null,"RES. 481/2011 - El Establecimiento acopia explosivos o mezclas que los contengan, reguladas por autoridad competente en la materia. ACOPIO: cantidad máxima cualquier día del año."]
[7,"GRUPO 3 DETERMINADO POR LA AUTORIDAD AMBIENTAL COMPETENTE",3,10,null,null,"RES. 481/2011 - El Establecimiento tiene una asignación en el grupo 3 en base a un criterio sitio específico determinado por la Autoridad Ambiental competente de la Jurisdicción"]
[8,"NO ES GRUPO 3 Y ACOPIA 10 m³ Ó MAS DE SUSTANCIAS PELIGROSAS",2,5,null,null,"RES. 481/2011 - El Establecimiento no está comprendido en el grupo 3 y acopia sustancias peligrosas o sus mezclas (incluidos residuos peligrosos o especiales clasificados como tales por la normativa jurisdiccional) en cualquier estado de agrgación, en volumen igual o superior a 10 m³. ACOPIO: cantidad máxima cualquier día del año."]
[9,"NO ES GRUPO 3 Y ACOPIA 50 KG. Ó MAS DE SUSTANCIAS PELIGROSAS DE ELIMINACIÓN PROGRAMADA",2,5,null,null,"RES. 481/2011 - El Establecimiento no está comprendido en el grupo 3 y acopia una cantidad igual o superior a 50 kg de peso bruto de sustancias o sus mezclas (incluidos los residuos) de eliminación programada por normativa específica para la sustancia, en cualquier estado de agregación. ACOPIO: cantidad máxima cualquier día del año."]
[10,"NO ES GRUPO 3 Y ACOPIA 1 m³ Ó MAS DE SUSTANCIAS MUY TÓXICAS (Res. 1639/2007)",2,5,null,null,"RES. 481/2011 - El Establecimiento no está comprendido en el grupo 3 y acopia sustancias y sus mezclas (incluidos los residuos) MUY TOXICAS - clasificación de toxicidad aguda de la Parte 2 del Anexo II de la Res. 1639/07 - en volumen igual o superior a 1m³. ACOPIO: cantidad máxima cualquier día del año."]
[11,"GRUPO 2 DETERMINADO POR LA AUTORIDAD AMBIENTAL COMPETENTE",2,5,null,null,"RES. 481/2011 - El Establecimiento tiene una asignación en el grupo 2 en base a un criterio sitio específico determinado por la Autoridad Ambiental competente de la Jurisdicción"]
[12,"ACTIV. INDUSTRIAL/SERVICIO NO INCLUIDA EN GRUPOS 3 Y 2 + GENERADORA RESIDUOS PELIGROSOS O ESPECIALES",1,1,null,null,"RES. 481/2011 - Toda otra actividad industrial o de servicio no incluida en los grupos 3 y 2 que esté obligada a cumplir con la inscripción como generadora de residuos peligrosos o especiales según la normativa de la jurisdicción"]
[13,"GRUPO 1 DETERMINADO POR LA AUTORIDAD AMBIENTAL COMPETENTE",1,1,null,null,"RES. 481/2011 - El Establecimiento tiene una asignación en el grupo 1 en base a un criterio sitio específico determinado por la Autoridad Ambiental competente de la Jurisdicción"]

{"sheet":"TIPO","index":5,"n_rows":97,"n_cols":6,"rows_kept":97,"cut":false,"hidden":true,"merged":[]}
["G","L","S",null,"GLS","Nº"]
[0,0,0,null,{"$f":"+A2&B2&C2","v":"000"},0]
[0,0,"S0",null,"00S0",0]
[0,0,"S1",null,"00S1",1]
[0,0,"S2",null,"00S2",2]
[0,0,"S3",null,"00S3",3]
[0,0,"S4",null,"00S4",4]
[0,"L0",0,null,"0L00",0]
[0,"L0","S0",null,"0L0S0",0]
[0,"L0","S1",null,"0L0S1",1]
[0,"L0","S2",null,"0L0S2",2]
[0,"L0","S3",null,"0L0S3",3]
[0,"L0","S4",null,"0L0S4",4]
[0,"L1",0,null,"0L10",1]
[0,"L1","S0",null,"0L1S0",1]
[0,"L1","S1",null,"0L1S1",1]
[0,"L1","S2",null,"0L1S2",2]
[0,"L1","S3",null,"0L1S3",3]
[0,"L1","S4",null,"0L1S4",4]
[0,"L2",0,null,"0L20",3]
[0,"L2","S0",null,"0L2S0",3]
[0,"L2","S1",null,"0L2S1",3]
[0,"L2","S2",null,"0L2S2",3]
[0,"L2","S3",null,"0L2S3",3]
[0,"L2","S4",null,"0L2S4",4]
["G0",0,0,null,"G000",0]
["G0",0,"S0",null,"G00S0",0]
["G0",0,"S1",null,"G00S1",1]
["G0",0,"S2",null,"G00S2",2]
["G0",0,"S3",null,"G00S3",3]
["G0",0,"S4",null,"G00S4",4]
["G0","L0",0,null,"G0L00",0]
["G0","L0","S0",null,"G0L0S0",0]
["G0","L0","S1",null,{"$f":"+A34&B34&C34","v":"G0L0S1"},1]
["G0","L0","S2",null,"G0L0S2",2]
["G0","L0","S3",null,"G0L0S3",3]
["G0","L0","S4",null,"G0L0S4",4]
["G0","L1",0,null,"G0L10",1]
["G0","L1","S0",null,"G0L1S0",1]
["G0","L1","S1",null,"G0L1S1",1]
["G0","L1","S2",null,"G0L1S2",2]
["G0","L1","S3",null,"G0L1S3",3]
["G0","L1","S4",null,"G0L1S4",4]
["G0","L2",0,null,"G0L20",3]
["G0","L2","S0",null,"G0L2S0",3]
["G0","L2","S1",null,"G0L2S1",3]
["G0","L2","S2",null,"G0L2S2",3]
["G0","L2","S3",null,"G0L2S3",3]
["G0","L2","S4",null,"G0L2S4",4]
["G1",0,0,null,"G100",1]
["G1",0,"S0",null,"G10S0",1]
["G1",0,"S1",null,"G10S1",1]
["G1",0,"S2",null,"G10S2",2]
["G1",0,"S3",null,"G10S3",3]
["G1",0,"S4",null,"G10S4",4]
["G1","L0",0,null,"G1L00",1]
["G1","L0","S0",null,"G1L0S0",1]
["G1","L0","S1",null,"G1L0S1",1]
["G1","L0","S2",null,"G1L0S2",2]
["G1","L0","S3",null,"G1L0S3",3]
["G1","L0","S4",null,"G1L0S4",4]
["G1","L1",0,null,"G1L10",1]
["G1","L1","S0",null,"G1L1S0",1]
["G1","L1","S1",null,"G1L1S1",1]
["G1","L1","S2",null,"G1L1S2",2]
["G1","L1","S3",null,{"$f":"+A66&B66&C66","v":"G1L1S3"},3]
["G1","L1","S4",null,"G1L1S4",4]
["G1","L2",0,null,"G1L20",3]
["G1","L2","S0",null,"G1L2S0",3]
["G1","L2","S1",null,"G1L2S1",3]
["G1","L2","S2",null,"G1L2S2",3]
["G1","L2","S3",null,"G1L2S3",3]
["G1","L2","S4",null,"G1L2S4",4]
["G2",0,0,null,"G200",4]
["G2",0,"S0",null,"G20S0",4]
["G2",0,"S1",null,"G20S1",4]
["G2",0,"S2",null,"G20S2",4]
["G2",0,"S3",null,"G20S3",4]
["G2",0,"S4",null,"G20S4",4]
["G2","L0",0,null,"G2L00",4]
["G2","L0","S0",null,"G2L0S0",4]
["G2","L0","S1",null,"G2L0S1",4]
["G2","L0","S2",null,"G2L0S2",4]
["G2","L0","S3",null,"G2L0S3",4]
["G2","L0","S4",null,"G2L0S4",4]
["G2","L1",0,null,"G2L10",4]
["G2","L1","S0",null,"G2L1S0",4]
["G2","L1","S1",null,"G2L1S1",4]
["G2","L1","S2",null,"G2L1S2",4]
["G2","L1","S3",null,"G2L1S3",4]
["G2","L1","S4",null,"G2L1S4",4]
["G2","L2",0,null,"G2L20",4]
["G2","L2","S0",null,"G2L2S0",4]
["G2","L2","S1",null,"G2L2S1",4]
["G2","L2","S2",null,"G2L2S2",4]
["G2","L2","S3",null,"G2L2S3",4]
["G2","L2","S4",null,"G2L2S4",4]

{"sheet":"Hoja1","index":6,"n_rows":0,"n_cols":0,"rows_kept":0,"cut":false,"hidden":true,"merged":[]}